lending/lending_fUSD_20241012
["ID","MTS","AMOUNT","RATE_DAILY","PERIOD"]
[340165296,1728732631825,-628.99021115,0.000109,2]
[340165297,1728732631834,-381.27940567,0.000109,2]
[340165298,1728732631844,-294.467,0.00010912,2]
[340165299,1728732631854,-234.464,0.00010912,2]
[340165300,1728732631863,-200.0,0.00010959,2]
[340165301,1728732631872,-499.99,0.00010959,2]
[340165302,1728732631882,-164.81,0.00010959,2]
[340165303,1728732631892,-306.43,0.00010959,2]
[340165304,1728732631903,-250.0,0.00010959,2]
[340165305,1728732631912,-159.49,0.00010959,2]
[340165306,1728732631922,-308.22,0.00010959,2]
[340165307,1728732631931,-500.0,0.00010973,2]
[340165308,1728732631941,-500.0,0.00010973,2]
[340165309,1728732631951,-641.20696685,0.00010973,2]
[340165311,1728732631960,-501.88029257,0.00010973,2]
[340165313,1728732631969,-499.46648494,0.00010973,2]
[340165314,1728732631979,-500.0,0.00010973,2]
[340165316,1728732631988,-161.01225963,0.00010973,2]
[340165317,1728732631998,-343.03310676,0.00010973,2]
[340165318,1728732632009,-1993.8874283,0.00010995,2]
[340165319,1728732632019,-213.2866655,0.00010995,2]
[340165320,1728732632029,-261.7208027,0.00010995,2]
[340165321,1728732632039,-274.0702186,0.00010995,2]
[340165322,1728732632048,-604.1388507,0.00010995,2]
[340165323,1728732632058,-150.01,0.00010999,2]
[340165324,1728732632067,-174.37874902,0.00010999,2]
[340165325,1728732632077,-102146.32028552,0.00011,2]
[340165326,1728732632086,-77154.02867868,0.00011,2]
[340165327,1728732632098,-110414.55039691,0.00011,2]
[340165328,1728732632110,-1284.26330869,0.00011,2]
[340165329,1728732632121,-1100.75449853,0.00011,2]
[340165330,1728732632132,-12013.07877308,0.00011,2]
[340165335,1728732637622,-1700.51020281,0.00011,2]
[340165336,1728732637634,-1342.85010944,0.00011,2]
[340165337,1728732637652,-990.90014079,0.00011,2]
[340165341,1728732637756,-63359.92139121,0.00011,2]
[340165342,1728732638042,-32006.39999999,0.00011,2]
[340165349,1728732639692,-685.78827101,0.00011,2]
[340165350,1728732639910,-1723.505,0.00011,2]
[340165352,1728732639923,-442.19899987,0.00011,2]
[340165353,1728732639934,-262.61055778,0.00011,2]
[340165359,1728732642621,-663.03555469,0.00011,2]
[340165360,1728732642632,-265842.60492093,0.00011,2]
[340165361,1728732642644,-1255.06367634,0.00011,2]
[340165365,1728732642835,-427.18428536,0.00011,2]
[340165366,1728732642846,-537.88,0.00011,2]
[340165367,1728732642856,-935.05871083,0.00011,2]
[340165368,1728732642958,-350.184,0.00011,2]
[340165369,1728732642969,-9048.12466035,0.00011,2]
[340165370,1728732642980,-1139861.42831391,0.00011,2]
[340165371,1728732642991,-279.37300001,0.00011,2]
[340165373,1728732645657,-622.12463954,0.00011,2]
[340165374,1728732645669,-1583.34976696,0.00011,2]
[340165375,1728732645766,-31674.59367999,0.00011,2]
[340165376,1728732645796,-14665.69783346,0.00011,2]
[340165382,1728732722977,505.37,8.683e-05,2]
[340165385,1728732868850,250.0,0.00010188,2]
[340165387,1728732880096,2513.0,0.00010995,3]
[340165388,1728732912904,327.45,0.00010168,2]
[340165389,1728732920445,200.75,0.00010168,2]
[340165411,1728733063745,1000.0,0.00010147,2]
[340165414,1728733198884,410.0,0.00010104,2]
[340165419,1728733327747,250.0,0.00010084,2]
[340165420,1728733414194,295.97,0.00010084,2]
[340165421,1728733426449,508.83,8.219e-05,2]
[340165422,1728733436611,250.0,0.00010084,2]
[340165423,1728733452746,252.95,0.00010084,2]
[340165424,1728733565754,200.0,0.00010046,2]
[340165609,1728733831659,-508.83,0.0001048,2]
[340165610,1728733831669,-300.0,0.00010799,2]
[340165611,1728733831678,-980.71181961,0.000108,2]
[340165612,1728733831712,-1408.21,0.000108,2]
[340165613,1728733831767,-4009.54228039,0.000108,2]
[340165614,1728733831777,-2214.2759,0.000108,2]
[340165615,1728733831787,-7396.7187,0.000108,2]
[340165616,1728733831796,-150.0,0.00010858,2]
[340165617,1728733831805,-150.0,0.00010877,2]
[340165618,1728733831814,-173.07981899,0.00010896,2]
[340165619,1728733831825,-14118.63098624,0.00010897,2]
[340165620,1728733831836,-14996.22191376,0.00010897,2]
[340165621,1728733831846,-290.3734,0.00010897,2]
[340165622,1728733831855,-160.36941333,0.000109,2]
[340165623,1728733831864,-2025.8692,0.000109,2]
[340165624,1728733831873,-298.149,0.00010905,2]
[340165625,1728733831884,-2192.51706485,0.00010905,2]
[340165626,1728733831896,-3330.75293515,0.00010905,2]
[340165627,1728733831906,-500.0,0.00010912,2]
[340165628,1728733831915,-499.99,0.00010947,2]
[340165629,1728733831925,-200.0,0.00010959,2]
[340165631,1728733831934,-162.35,0.00010959,2]
[340165632,1728733831944,-696.64,0.00010959,2]
[340165633,1728733831953,-250.0,0.00010959,2]
[340165634,1728733831962,-241.69,0.00010959,2]
[340165635,1728733831971,-160.44652729,0.00010973,2]
[340165636,1728733831981,-340.50340039,0.00010973,2]
[340165637,1728733831990,-500.0,0.00010973,2]
[340165638,1728733832000,-500.0,0.00010973,2]
[340165639,1728733832009,-304.46830506,0.0001099,2]
[340165640,1728733832018,-304.46830506,0.0001099,2]
[340165641,1728733832027,-304.46830506,0.0001099,2]
[340165642,1728733832036,-305.3440943,0.00010995,2]
[340165643,1728733832045,-750.284285,0.00010995,2]
[340165644,1728733832054,-336.6705013,0.00010995,2]
[340165645,1728733832064,-888.7663287,0.00010995,2]
[340165646,1728733832074,-1460.1078282,0.00010995,2]
[340165647,1728733832083,-565.94786541,0.00010995,2]
[340165648,1728733832092,-14406.88149487,0.00010997,2]
[340165661,1728733837887,-1000.0,0.000109,2]
[340165662,1728733837897,-528.35096145,0.000109,2]
[340165663,1728733837907,-39653.63439812,0.00010997,2]
[340165664,1728733837917,-158.83782951,0.00010999,2]
[340165665,1728733837926,-3858.05735631,0.00011,2]
[340165666,1728733838010,-97264.8232627,0.00011,2]
[340165667,1728733838020,-331064.01655988,0.00011,2]
[340165668,1728733838033,-85126.43190946,0.00011,2]
[340165669,1728733838064,-5145.29999757,0.00011,2]
[340165670,1728733838119,-546.63622183,0.00011,2]
[340165671,1728733838226,-473.48451638,0.00011,2]
[340165701,1728733839749,-2363.9,0.00011,2]
[340165702,1728733839803,-20106.592846,0.00011,2]
[340165703,1728733839815,-267.676477,0.00011,2]
[340165704,1728733839857,-415.1,0.00011,2]
[340165705,1728733839918,-5818.34291614,0.00011,2]
[340165706,1728733839965,-1278.93957639,0.00011,2]
[340165905,1728733842799,-731.71185817,0.00011,2]
[340165906,1728733842811,-740.23858598,0.00011,2]
[340165907,1728733843114,-130385.72202287,0.00011,2]
[340165908,1728733843168,-3087.7847,0.00011,2]
[340165910,1728733845675,-316.225,0.00011,2]
[340165911,1728733845733,-6410.64000001,0.00011,2]
[340165912,1728733845757,-255.49885648,0.00011,2]
[340165930,1728734073608,840.0,9.739e-05,2]
[340165931,1728734107934,486.75,8.219e-05,2]
[340165935,1728734199864,166.71,9.708e-05,2]
[340165944,1728734470633,295.97,9.729e-05,2]
[340165945,1728734489084,179.85,9.725e-05,2]
[340165946,1728734506799,250.0,9.714e-05,2]
[340165948,1728734658410,250.0,9.723e-05,2]
[340165956,1728734756832,1000.0,9.73e-05,2]
[340165966,1728734767040,519.55,8.219e-05,2]
[340166109,1728735019149,242.28583337,0.00010159,2]
[340166110,1728735024344,242.28583333,0.00010159,2]
[340166111,1728735029031,242.28583333,0.0001016,2]
[340166116,1728735031856,-158.51,0.00010256,2]
[340166117,1728735031866,-158.51,0.00010259,2]
[340166118,1728735031876,-158.51,0.00010263,2]
[340166119,1728735031885,-158.51,0.00010266,2]
[340166120,1728735031894,-152.25632256,0.0001027,2]
[340166121,1728735031911,-6.25367744,0.0001027,2]
[340166122,1728735031920,-158.51,0.00010273,2]
[340166123,1728735031930,-158.51,0.00010276,2]
[340166124,1728735031941,-158.51,0.0001028,2]
[340166125,1728735031952,-158.51,0.00010283,2]
[340166126,1728735031962,-158.51,0.00010287,2]
[340166127,1728735031971,-158.51,0.0001029,2]
[340166128,1728735031981,-158.51,0.00010294,2]
[340166129,1728735031990,-158.51,0.00010297,2]
[340166130,1728735032000,-158.51,0.000103,2]
[340166131,1728735032010,-158.51,0.00010304,2]
[340166132,1728735032019,-158.51,0.00010307,2]
[340166133,1728735032029,-291.35385838,0.00010462,2]
[340166134,1728735032041,-228.19614162,0.00010462,2]
[340166135,1728735032051,-193.49,0.00010567,2]
[340166136,1728735032060,-481.84266781,0.00010633,2]
[340166137,1728735032122,-318.15733219,0.00010633,2]
[340166138,1728735032279,-150.0,0.00010872,2]
[340166139,1728735032289,-1076.79735922,0.00010873,2]
[340166140,1728735032303,-314.566,0.00010873,2]
[340166145,1728735034583,242.28583333,0.0001016,2]
[340166152,1728735038233,-203.14,0.0001027,2]
[340166153,1728735038244,-516.63664078,0.00010873,2]
[340166154,1728735038255,-129.42861838,0.00010873,2]
[340166191,1728735039053,242.28583333,0.0001016,2]
[340166194,1728735039915,-704.56387038,0.00010873,2]
[340166195,1728735039927,-898.88029464,0.00010873,2]
[340166196,1728735040021,-848.47786876,0.00010873,2]
[340166394,1728735042955,-774.64934784,0.00010873,2]
[340166396,1728735042968,-186.18215196,0.00010873,2]
[340166503,1728735044136,202.36,0.00010228,2]
[340166507,1728735044169,242.28583333,0.00010161,2]
[340166521,1728735045879,-259.99999999,0.00010873,2]
[340166522,1728735045931,-665.449164,0.00010873,2]
[340166523,1728735045990,-798.36868405,0.00010873,2]
[340166524,1728735046000,-808.0,0.00010873,2]
[340166525,1728735046009,-150.0,0.00010873,2]
[340166526,1728735046018,-5882.0,0.00010873,2]
[340166527,1728735046028,-1150.0,0.00010873,2]
[340166528,1728735046037,-13526.0,0.00010873,2]
[340166529,1728735046046,-4800.5565,0.000109,2]
[340166530,1728735046056,-1138.8703,0.000109,2]
[340166531,1728735046065,-150.0,0.000109,2]
[340166532,1728735046074,-150.0,0.000109,2]
[340166533,1728735046083,-429.44,0.000109,2]
[340166534,1728735046093,-150.0,0.000109,2]
[340166535,1728735046102,-359.09,0.000109,2]
[340166536,1728735046112,-150.0,0.000109,2]
[340166537,1728735046121,-755.56,0.000109,2]
[340166538,1728735046130,-423.99,0.000109,2]
[340166539,1728735046139,-150.0,0.000109,2]
[340166540,1728735046149,-150.0,0.000109,2]
[340166541,1728735046158,-150.0,0.000109,2]
[340166542,1728735046169,-161.8461788,0.000109,2]
[340166543,1728735046179,-1000.0,0.00010946,2]
[340166544,1728735046188,-200.0,0.00010959,2]
[340166545,1728735046198,-164.81,0.00010959,2]
[340166546,1728735046208,-557.31,0.00010959,2]
[340166547,1728735046217,-238.519,0.00010959,2]
[340166548,1728735046226,-612.41587279,0.00010973,2]
[340166549,1728735046236,-1083.0,0.00010987,2]
[340166550,1728735046246,-344.5303152,0.00010995,2]
[340166551,1728735046255,-1476.5904287,0.00010995,2]
[340166552,1728735046264,-382.6040451,0.00010995,2]
[340166553,1728735046273,-2894.1811006,0.00010995,2]
[340166554,1728735046282,-500.0,0.00010999,2]
[340166555,1728735046291,-500.0,0.00010999,2]
[340166556,1728735046301,-500.0,0.00010999,2]
[340166557,1728735046310,-500.0,0.00010999,2]
[340166558,1728735046320,-257.43538269,0.00010999,2]
[340166559,1728735046329,-500.0,0.00010999,2]
[340166560,1728735046338,-202.41746302,0.00010999,2]
[340166561,1728735046348,-99755.52251788,0.00011,2]
[340166562,1728735046357,-134869.03221117,0.00011,2]
[340166563,1728735046369,-36730.87859983,0.00011,2]
[340166564,1728735046380,-99991.1101,0.00011,2]
[340166565,1728735046392,-15856.92130017,0.00011,2]
[340166566,1728735046403,-440.85017263,0.00011,2]
[340166572,1728735049752,242.28583333,0.00010161,2]
[340166573,1728735054027,242.28583333,0.00010162,2]
[340166574,1728735054870,2413.332,0.00010156,2]
[340166575,1728735059108,242.28583333,0.00010162,2]
[340166576,1728735064040,242.28583333,0.00010162,2]
[340166577,1728735069120,242.28583333,0.00010163,2]
[340166578,1728735074100,242.28583333,0.00010163,2]
[340166581,1728735267922,510.3,8.312e-05,2]
[340166582,1728735354319,3929.19844283,0.00010231,2]
[340166584,1728735539677,183.49,0.00010067,2]
[340166585,1728735551542,203.13,0.00010084,2]
[340166586,1728735756330,425.58,0.00010042,2]
[340166587,1728735758964,250.0,0.00010062,2]
[340166588,1728735765556,250.0,0.00010082,2]
[340166589,1728735822232,511.88,8.231e-05,2]
[340166590,1728735885774,1000.0,0.00010108,2]
[340166652,1728736190768,179.85,0.00010142,2]
[340166684,1728736232035,-1466.786944,0.00010442,2]
[340166687,1728736232044,-511.88,0.00010495,2]
[340166688,1728736232055,-308.39,0.0001089,2]
[340166689,1728736232065,-300.0,0.00010899,2]
[340166690,1728736232075,-187.31109944,0.000109,2]
[340166691,1728736232085,-583.08306434,0.000109,2]
[340166692,1728736232094,-1461.14297755,0.000109,2]
[340166693,1728736232104,-1021.5909,0.00010945,2]
[340166694,1728736232113,-169.967,0.00010959,2]
[340166695,1728736232122,-200.0,0.00010959,2]
[340166696,1728736232132,-159.51,0.00010959,2]
[340166697,1728736232141,-163.95,0.00010959,2]
[340166698,1728736232150,-162.35,0.00010959,2]
[340166699,1728736232160,-445.84,0.00010959,2]
[340166700,1728736232169,-237.56,0.00010959,2]
[340166701,1728736232178,-499.99,0.00010959,2]
[340166702,1728736232187,-1154.49,0.00010959,2]
[340166703,1728736232196,-500.0,0.00010973,2]
[340166704,1728736232205,-540.1526142,0.00010995,2]
[340166705,1728736232215,-3121.6613359,0.00010995,2]
[340166706,1728736232224,-491.6411208,0.00010995,2]
[340166707,1728736232234,-290.74430071,0.00010999,2]
[340166708,1728736232243,-150.0,0.00010999,2]
[340166709,1728736232252,-4245.51143748,0.00011,2]
[340166710,1728736232371,-6310.88016714,0.00011,2]
[340166711,1728736232386,-3465.39809847,0.00011,2]
[340166712,1728736232401,-51831.96062783,0.00011,2]
[340166718,1728736238508,-32580.42300996,0.00011,2]
[340166719,1728736238519,-22743.49384678,0.00011,2]
[340166720,1728736238530,-667.84526411,0.00011,2]
[340166721,1728736238545,-1234.63522344,0.00011,2]
[340166734,1728736240201,-485.18,0.00011,2]
[340166735,1728736240312,-500.00813981,0.00011,2]
[340166736,1728736240370,-657.0,0.00011,2]
[340166737,1728736240381,-4346.509,0.00011,2]
[340166754,1728736243108,-6500.63300026,0.00011,2]
[340166755,1728736243119,-830.40439571,0.00011,2]
[340166759,1728736246081,-12864.27367821,0.00011,2]
[340166760,1728736246094,-3965.09886141,0.00011,2]
[340166761,1728736246105,-36920.832,0.00011,2]
[340166762,1728736246246,-815.72982737,0.00011,2]
[340166763,1728736246410,-315.23,0.00011,2]
[340166768,1728736380569,514.98,8.677e-05,2]
[340166769,1728736446405,200.0,0.0001021,2]
[340166770,1728736721664,216.09,0.00010182,2]
[340166771,1728736821578,250.0,0.00010181,2]
[340166772,1728736874703,250.0,0.00010218,2]
[340166773,1728737013350,514.47,8.278e-05,2]
[340166774,1728737056869,1000.0,0.00010179,2]
[340166900,1728737432242,-514.47,0.00010542,2]
[340166901,1728737432252,-223.763959,0.00010636,2]
[340166902,1728737432262,-478.0,0.000107,2]
[340166903,1728737432271,-150.0,0.00010877,2]
[340166904,1728737432280,-150.0,0.00010899,2]
[340166905,1728737432289,-300.0,0.00010899,2]
[340166906,1728737432300,-168.7348062,0.000109,2]
[340166907,1728737432310,-8760.8708122,0.000109,2]
[340166908,1728737432353,-1262.339934,0.000109,2]
[340166910,1728737438334,-1627.43562799,0.000109,2]
[340166911,1728737438346,-1117.71596049,0.000109,2]
[340166912,1728737438498,-3148.54046736,0.000109,2]
[340166913,1728737438608,-60526.02551649,0.000109,2]
[340166914,1728737438618,-995.95036008,0.000109,2]
[340166915,1728737438628,-195.47382231,0.000109,2]
[340166916,1728737438638,-190.048,0.00010912,2]
[340166917,1728737438650,-200.0,0.00010959,2]
[340166918,1728737438660,-245.46,0.00010959,2]
[340166919,1728737438669,-559.96,0.00010959,2]
[340166920,1728737438678,-499.5984,0.00010973,2]
[340166921,1728737438687,-826.7928803,0.00010995,2]
[340166922,1728737438697,-626.6289355,0.00010995,2]
[340166923,1728737438706,-4016.3184403,0.00010995,2]
[340166924,1728737438715,-290.7443007,0.00010999,2]
[340166925,1728737438723,-94268.21988901,0.00011,2]
[340166926,1728737438733,-511926.78218653,0.00011,2]
[340166970,1728737440272,-747.29693624,0.00011,2]
[340166971,1728737440328,-1339.99999945,0.00011,2]
[340166972,1728737440443,-1122.68027708,0.00011,2]
[340166973,1728737440454,-517.05428338,0.00011,2]
[340166974,1728737440607,-673.33331638,0.00011,2]
[340167346,1728737446317,-521.0,0.00011,2]
[340167347,1728737446327,-7466.66813717,0.00011,2]
[340167353,1728737664042,488.35,8.393e-05,2]
[340167354,1728737670955,500.0,0.0001,2]
[340167355,1728737671630,500.0,0.0001,2]
[340167356,1728737671714,462.18,0.0001,2]
[340167357,1728737672442,500.0,0.0001,2]
[340167358,1728737673195,500.0,0.0001,2]
[340167359,1728737674003,500.0,0.0001,2]
[340167360,1728737674961,279.86,0.0001,2]
[340167365,1728737989199,181.68,0.00010174,2]
[340167367,1728738114109,250.0,0.00010182,2]
[340167370,1728738205933,488.76,8.305e-05,2]
[340167430,1728738275880,1000.0,0.00010219,2]
[340167481,1728738460196,222.0,0.00021523,90]
[340167547,1728738631517,-172.87,0.0001024,2]
[340167548,1728738631526,-250.0,0.00010256,2]
[340167549,1728738631536,-164.33002,0.00010569,2]
[340167550,1728738631576,-324.42998,0.00010569,2]
[340167551,1728738631585,-552.76626056,0.00010633,2]
[340167552,1728738631597,-250.93194961,0.00010633,2]
[340167553,1728738631607,-249.06805039,0.000109,2]
[340167560,1728738637510,-647.28727361,0.000109,2]
[340167561,1728738637520,-150.0,0.00010921,2]
[340167562,1728738637530,-150.0,0.00010922,2]
[340167563,1728738637539,-3154.26595662,0.00010922,2]
[340167564,1728738637552,-2727.73404338,0.00010922,2]
[340167565,1728738637562,-12049.43898929,0.00010922,2]
[340167566,1728738637725,-794.54268884,0.00010922,2]
[340167567,1728738637737,-682.01832187,0.00010922,2]
[340167568,1728738637746,-1150.0,0.00010922,2]
[340167569,1728738637755,-153.64410221,0.00010959,2]
[340167570,1728738637780,-46.35589779,0.00010959,2]
[340167571,1728738637789,-188.19,0.00010959,2]
[340167572,1728738637798,-209.86,0.00010959,2]
[340167573,1728738637807,-159.51,0.00010959,2]
[340167574,1728738637816,-447.96,0.00010959,2]
[340167575,1728738637825,-148.12410221,0.00010959,2]
[340167583,1728738639635,-1906.85289484,0.000109,2]
[340167584,1728738639648,-375.102576,0.000109,2]
[340167830,1728738643020,-218.04452916,0.000109,2]
[340167831,1728738643029,-451.66969313,0.00010922,2]
[340167832,1728738643185,-631.33030687,0.00010922,2]
[340167833,1728738643195,-18313.66663313,0.00010959,2]
[340167839,1728738645474,-366.17275783,0.0001045,2]
[340167840,1728738645486,-271.43427948,0.0001045,2]
[340167844,1728738739001,487.05,8.635e-05,2]
[340167845,1728738872403,250.0,0.00010235,2]
[340167846,1728738916427,250.0,0.00010235,2]
[340167847,1728739273643,485.44,8.303e-05,2]
[340167848,1728739366929,250.0,0.00010145,2]
[340167849,1728739382083,800.0,0.00010189,2]
[340167850,1728739494314,342.72,0.00010149,2]
[340167858,1728739554147,3313.89,6.94e-05,2]
[340167860,1728739566638,968.23602814,0.0001,2]
[340168049,1728739775941,461.16,8.367e-05,2]
[340168068,1728739831619,-357.55,0.00010243,2]
[340168069,1728739831628,-216.84,0.00010258,2]
[340168070,1728739831638,-577.16012815,0.0001045,2]
[340168071,1728739831648,-1007.07587274,0.0001045,2]
[340168072,1728739831659,-471.9509302,0.0001045,2]
[340168073,1728739831680,-365.06759219,0.0001045,2]
[340168074,1728739831691,-431.36387479,0.0001045,2]
[340168075,1728739831702,-791.24822385,0.0001045,2]
[340168076,1728739831712,-441.93854479,0.0001045,2]
[340168077,1728739831723,-494.60842309,0.0001045,2]
[340168078,1728739831765,-2495.58103286,0.0001045,2]
[340168079,1728739831774,-200.0,0.00010523,2]
[340168080,1728739831783,-282.05130633,0.00010631,2]
[340168092,1728739837853,-179.10869367,0.00010631,2]
[340168093,1728739837863,-277.42468925,0.000107,2]
[340168094,1728739837873,-254.36758674,0.000107,2]
[340168095,1728739837883,-359.80734695,0.00010899,2]
[340168096,1728739837912,-446.91244465,0.00010899,2]
[340168097,1728739837921,-806.7197916,0.00010899,2]
[340168098,1728739837931,-1322.655431,0.000109,2]
[340168099,1728739837941,-242.25279345,0.000109,2]
[340168100,1728739837957,-475.4729871,0.000109,2]
[340168101,1728739837973,-1706.22595138,0.000109,2]
[340168102,1728739838036,-300.0,0.000109,2]
[340168103,1728739838048,-838.81784919,0.000109,2]
[340168104,1728739838059,-452.23005662,0.000109,2]
[340168106,1728739839564,-1266.91360254,0.000109,2]
[340168107,1728739839576,-346.03419132,0.000109,2]
[340168108,1728739839631,-900.11743906,0.000109,2]
[340168109,1728739839749,-406.7955218,0.000109,2]
[340168110,1728739839762,-886.49320754,0.000109,2]
[340168111,1728739839772,-321.31079246,0.000109,2]
[340168112,1728739839868,-324.82004538,0.000109,2]
[340168120,1728739842973,-806.7197916,0.00010899,2]
[340168121,1728739842983,-1185.25206216,0.000109,2]
[340168122,1728739842993,-351.0336,0.000109,2]
[340168123,1728739843003,-651.78307708,0.000109,2]
[340168124,1728739843013,-651.78307707,0.000109,2]
[340168125,1728739843022,-651.65426798,0.000109,2]
[340168126,1728739843031,-984.80473627,0.000109,2]
[340168127,1728739843040,-187.311,0.00010912,2]
[340168128,1728739843050,-1103.64,0.00010945,2]
[340168129,1728739843059,-3218.49246059,0.00010945,2]
[340168130,1728739843071,-2767.20753941,0.00010945,2]
[340168131,1728739843080,-499.99,0.00010945,2]
[340168132,1728739843089,-646.31,0.00010945,2]
[340168133,1728739843098,-184.31,0.00010945,2]
[340168134,1728739843107,-1000.0,0.00010945,2]
[340168135,1728739843116,-624.42347044,0.00010945,2]
[340168136,1728739843127,-375.57652956,0.00010945,2]
[340168137,1728739843136,-250.20730717,0.00010945,2]
[340168138,1728739843356,-397.8544895,0.00010945,2]
[340168139,1728739843368,-351.93820333,0.00010945,2]
[340168140,1728739843377,-1000.0,0.00010945,2]
[340168141,1728739843386,-1000.0,0.00010945,2]
[340168142,1728739843395,-279.2132,0.00010945,2]
[340168143,1728739843404,-400.34,0.00010959,2]
[340168144,1728739843413,-233.18,0.00010959,2]
[340168145,1728739843422,-25281.93325087,0.00010959,2]
[340168147,1728739845606,-767.42623504,0.00010446,2]
[340168148,1728739845620,-1276.01781302,0.00010446,2]
[340168149,1728739845720,-374.20473276,0.00010446,2]
[340168150,1728739845730,-478.94726724,0.00010959,2]
[340168181,1728739913914,179.54,0.00010234,2]
[340168198,1728739980275,250.0,0.00010165,2]
[340168199,1728740383828,640.0,9.956e-05,2]
[340168200,1728740507694,172.87,9.957e-05,2]
[340168201,1728740510817,443.96,8.219e-05,2]
[340168202,1728740516856,250.0,9.947e-05,2]
[340168216,1728740832650,6195.15463605,0.000125,5]
[340168217,1728740832677,3601.84536395,0.000125,5]
[340168230,1728740929005,488.0,0.00010042,2]
[340168347,1728741007006,421.76,8.219e-05,2]
[340168353,1728741031884,-160.2362786,0.00010346,2]
[340168354,1728741031893,-167.34045003,0.00010446,2]
[340168355,1728741031902,-421.76,0.00010477,2]
[340168356,1728741031911,-300.0,0.00010858,2]
[340168357,1728741031921,-150.0,0.00010877,2]
[340168358,1728741031930,-1000.0,0.00010895,2]
[340168359,1728741031939,-150.0,0.00010895,2]
[340168360,1728741031948,-68.31205219,0.00010896,2]
[340168364,1728741037880,-3053.42549169,0.00010896,2]
[340168365,1728741037891,-783.30405987,0.00010896,2]
[340168376,1728741039946,-1894.48,0.00010896,2]
[340168377,1728741040105,-29355.65239625,0.00010896,2]
[340168378,1728741040115,-187.21,0.00010896,2]
[340168379,1728741040124,-1000.0,0.00010896,2]
[340168380,1728741040134,-3528.67842579,0.00010896,2]
[340168381,1728741040143,-913.38,0.00010896,2]
[340168382,1728741040152,-978.92036744,0.00010899,2]
[340168383,1728741040162,-978.92036737,0.00010899,2]
[340168384,1728741040172,-978.92036737,0.00010899,2]
[340168385,1728741040181,-978.92036737,0.00010899,2]
[340168387,1728741040190,-978.92036737,0.00010899,2]
[340168388,1728741040199,-978.92036737,0.00010899,2]
[340168390,1728741040209,-978.92036737,0.00010899,2]
[340168392,1728741040218,-978.92036737,0.00010899,2]
[340168394,1728741040227,-5627.9807,0.000109,2]
[340168396,1728741040237,-2643.74,0.000109,2]
[340168398,1728741040246,-499.99,0.000109,2]
[340168400,1728741040255,-186.2089,0.000109,2]
[340168401,1728741040264,-621.93,0.000109,2]
[340168403,1728741040274,-858.671,0.000109,2]
[340168405,1728741040283,-3061.4552,0.000109,2]
[340168407,1728741040292,-336.3384,0.000109,2]
[340168408,1728741040302,-7448.5301,0.000109,2]
[340168409,1728741040311,-184.476,0.00010912,2]
[340168410,1728741040320,-200.0,0.00010959,2]
[340168411,1728741040329,-434.39,0.00010959,2]
[340168412,1728741040340,-157.64,0.00010959,2]
[340168413,1728741040349,-1016.9759,0.00010959,2]
[340168414,1728741040359,-250.0,0.00010959,2]
[340168415,1728741040369,-41501.69,0.00010959,2]
[340168416,1728741040379,-2000.0,0.00010959,2]
[340168417,1728741040388,-200.0,0.00010959,2]
[340168418,1728741040398,-200.0,0.00010959,2]
[340168419,1728741040407,-503.29145163,0.00010973,2]
[340168420,1728741040416,-500.0,0.00010973,2]
[340168421,1728741040425,-211.99856331,0.00010973,2]
[340168422,1728741040435,-500.0,0.00010973,2]
[340168423,1728741040444,-190.84835504,0.0001099,2]